Cogmind - Beta 13 @@@ ROGUE MODE // 2024.05.13 @ 19:14:45 Player: Bits_and_Bytes Result: Self-destructed Performance ------------- Evolutions (1) 500 Regions Visited (4) 800 Robots Destroyed (84) 420 Value Destroyed (1594) 1594 Prototype IDs (2) 40 Alien Tech Used (0) 0 Bonus (30) 30 TOTAL SCORE: 3384 Bonus ------- High Alert Combat Kills 30 Cogmind --------- Core Integrity 252/400 Matter 272/300 Energy 265/265 System Corruption 1% Temperature Cool (0) Movement Treading (240) Ox1 Location -9/Exiles Parts ------- > --- POWER (1) -------- Improved Ion Engine > --- PROPULSION (3) --- Light Treads Light Treads Light Treads > --- UTILITY (3) ------ Huge Storage Unit Seismic Detector Hacking Suite > --- WEAPON (2) ------- EM Shotgun Improved Assault Rifle > --- INVENTORY (25) --- Light Nuclear Core Light Nuclear Core Light Treads Light Treads Light Treads Light Treads Heat Sink Large Matter Pod (150) Weight Redist. System Structural Scanner Machine Analyzer Advanced Visual Processing Unit Improved Terrain Scanner Transport Network Coupler ECM Suite ECM Suite ECM Suite Propulsion Shielding Medium Armor Plating Hacking Suite Hacking Suite Hacking Suite Rocket Launcher Datajack Mining Laser Peak State ------------ > --- POWER ------------ Improved Ion Engine > --- PROPULSION ------- Light Treads Light Treads Light Treads > --- UTILITY ---------- Huge Storage Unit Light Armor Plating Hacking Suite > --- WEAPON ----------- Beam Rifle Improved Assault Rifle > --- INVENTORY -------- Cooled Ion Engine Light Nuclear Core Light Treads Light Treads Heat Sink Cooling System Large Matter Pod Weight Redist. System Structural Scanner Machine Analyzer Improved Terrain Scanner Seismic Detector Transport Network Coupler Propulsion Shielding Medium Armor Plating Hacking Suite Hacking Suite Hacking Suite Mini Grenade Launcher Mini Grenade Launcher Datajack Mining Laser [Rating: 19] Favorites ----------- Power Light Ion Engine Engine Light Ion Engine Propulsion Light Treads Treads Light Treads Leg Aluminum Leg Utility Huge Storage Unit Device Structural Scanner Storage Huge Storage Unit Hackware Hacking Suite Protection Light Armor Plating Weapon Light Assault Rifle Energy Gun EM Shotgun Ballistic Gun Light Assault Rifle Ballistic Cannon Light Cannon Special Weapon Mining Laser Build | -11 -10 -9 -9 -9 ------- Run | Yrd Mat Mat Min Exi Slots Evolved 2 | . . 2 . . Power . | . . . . . Propulsion 1 | . . 1 . . Utility 1 | . . 1 . . Weapon . | . . . . . Parts Attached 76 | 8 20 47 1 . Power 8 | 1 2 5 . . Engine 8 | 1 2 5 . . Core . | . . . . . Reactor . | . . . . . Propulsion 15 | 2 2 11 . . Treads 14 | 2 1 11 . . Leg 1 | . 1 . . . Wheel . | . . . . . Hover . | . . . . . Flight . | . . . . . Utility 27 | 3 6 17 1 . Device 12 | 2 3 6 1 . Storage 4 | 1 2 1 . . Processor . | . . . . . Hackware 1 | . . 1 . . Protection 10 | . 1 9 . . Artifact . | . . . . . Weapon 26 | 2 10 14 . . Energy Gun 8 | 1 . 7 . . Energy Cannon . | . . . . . Ballistic Gun 9 | 1 3 5 . . Ballistic Cannon 5 | . 4 1 . . Launcher . | . . . . . Special Weapon 4 | . 3 1 . . Impact Weapon . | . . . . . Slashing Weapon . | . . . . . Piercing Weapon . | . . . . . Special Melee Weapon . | . . . . . Unidentified Prototypes 2 | . . 2 . . Parts Lost 9 | . 4 5 . . Power 2 | . 1 1 . . Propulsion 3 | . 1 2 . . Utility . | . . . . . Weapon 4 | . 2 2 . . Highest Loss Streak 2 | . 2 1 . . To Critical Strikes . | . . . . . Average Slot Usage (%) 99 | . 98 99 100 100 Engine 12 | . 14 10 11 11 Treads 30 | . 26 32 33 33 Device 11 | . 12 10 11 11 Storage 12 | . 14 11 11 11 Hackware 3 | . . 5 11 11 Protection 3 | . 1 6 . . Energy Gun 7 | . . 12 11 11 Ballistic Gun 12 | . 18 8 11 11 Ballistic Cannon 1 | . 3 . . . Special Weapon 2 | . 4 . . . Naked Turns . | . . . . . Heaviest Build 96 | 12 86 96 94 94 Greatest Support 60 | 40 40 60 60 60 Greatest Overweight (x) 3 | 3 2 2 1 1 Average Overweight (x) 1 | . 1 1 1 1 Largest Inventory Capacity 25 | 8 25 25 25 25 Average Capacity 22 | 7 20 25 25 25 Most Carried 25 | 3 21 25 25 25 Average Carried 20 | 1 16 23 25 25 Final Capacity 25 | 8 25 25 25 25 Final Carried 25 | 3 21 25 25 25 Class Distribution -------------------- 58% | Mutant 41% | Scavenger-Mutant Dominant Class ---------------- Mutant | -10/Materials Scavenger-Mutant | -9/Materials Mutant | -9/Mines Mutant | -9/Exiles Resources | -11 -10 -9 -9 -9 ----------- Run | Yrd Mat Mat Min Exi Matter Collected 1734 | 295 590 849 . . Remotely . | . . . . . Salvage Created 3041 | 189 514 2338 . . Parts 189 | 12 36 141 . . Haulers Intercepted 7 | . 2 5 . . Recyclers Shooed 6 | . 1 5 . . Parts Field Recycled . | . . . . . Retrieved Matter . | . . . . . Parts Self-Destructed . | . . . . . Prevented . | . . . . . Kills | -11 -10 -9 -9 -9 ------- Run | Yrd Mat Mat Min Exi Combat Hostiles Destroyed 47 | . 12 35 . . Guns 35 | . 5 30 . . Cannons 12 | . 7 5 . . Classes Destroyed 10 | 2 4 4 . . Worker 3 | . . 3 . . Tunneler 4 | 4 . . . . Hauler 7 | . 2 5 . . Recycler 12 | 1 3 8 . . Mechanic 1 | . . 1 . . Operator 2 | . . 2 . . Watcher 8 | . 3 5 . . Swarmer 20 | . 9 11 . . Grunt 17 | . 3 14 . . Sentry 10 | . . 10 . . Best Kill Streak 6 | 3 3 6 . . Combat Bots Only 6 | . 3 6 . . Max Kills in Single Turn 2 | 1 1 2 . . Gunslinging 1 | . . 1 . . Exploded . | . . . . . Melee . | . . . . . Uniques/NPCs Destroyed . | . . . . . Combat | -11 -10 -9 -9 -9 -------- Run | Yrd Mat Mat Min Exi Hostile Shots Fired 344 | . 111 224 . 9 Missed 107 | . 32 70 . 5 Damage Taken 2532 | . 706 1776 . 50 Core 262 | . 114 148 . . Absorbed by Shields . | . . . . . Redirected to Shielding 39 | . . 39 . . Regen/Repaired (Parts) 10 | . 10 . . . Core Remaining (%) 77 | 100 54 . . . Volleys Fired 240 | 15 95 130 . . Largest 2 | 2 2 2 . . Hottest 120 | 60 120 101 . . Shots Fired 444 | 30 177 236 . 1 Gun 372 | 30 123 218 . 1 Cannon 59 | . 42 17 . . Launcher . | . . . . . Special 13 | . 12 1 . . Kinetic 273 | 15 152 105 . 1 Thermal 61 | . 12 49 . . Explosive . | . . . . . Electromagnetic 110 | 15 13 82 . . Robot Hit Streak 18 | 7 8 18 . . Robot Miss Streak 6 | 3 6 4 . 1 Penetration Max . | . . . . . Secondary Targets 3 | . . 3 . . Max Gunslinging Chain 1 | . . 1 . . Shots Hit Robots 279 | 17 93 169 . . Core Hits 126 | 7 34 85 . . Critical Kills . | . . . . . Critical Parts Destroyed 2 | . 1 1 . . Critical Strikes 10 | . 4 6 . . Burn 2 | . . 2 . . Destroy 2 | . 1 1 . . Blast 4 | . 3 1 . . Corrupt 2 | . . 2 . . Melee Attacks . | . . . . . Impact . | . . . . . Slashing . | . . . . . Piercing . | . . . . . Sneak Attacks . | . . . . . Combat Hostiles . | . . . . . Follow-up Attacks . | . . . . . Damage Inflicted 3816 | 223 1023 2570 . . Guns 2981 | 185 559 2237 . . Cannons 705 | . 464 241 . . Explosions 96 | 38 . 58 . . Melee . | . . . . . Ramming 34 | . . 34 . . Kinetic 2116 | 50 955 1111 . . Thermal 562 | 38 . 524 . . Explosive . | . . . . . Electromagnetic 1104 | 135 68 901 . . Impact . | . . . . . Slashing . | . . . . . Piercing . | . . . . . Highest Corruption 2 | . 2 1 1 1 Average Corruption 1 | . 2 1 1 1 Corruption Purged . | . . . . . Corruption Blocked . | . . . . . Effects 49 | . 41 4 . 4 Message Errors 11 | . 9 1 . 1 Matter Fused 13 | . 9 2 . 2 Heat Flow Errors 3 | . 3 . . . Energy Discharges 7 | . 6 1 . . Data Loss (minor) 5 | . 5 . . . Data Loss (major) 3 | . 3 . . . Misfires 2 | . 1 . . 1 Alerts 4 | . 4 . . . Weapon Failures 1 | . 1 . . . Overload Shots . | . . . . . Overflow Damage . | . . . . . Projectiles . | . . . . . Explosions . | . . . . . Melee . | . . . . . Knockbacks 13 | . 9 4 . . Impact . | . . . . . Kinetic 12 | . 8 4 . . Secondary 1 | . 1 . . . Self-Inflicted Damage 33 | . . 33 . . Shots 1 | . . 1 . . Rammed 2 | . . 2 . . Targets Rammed 3 | . . 3 . . Kicked . | . . . . . Crushed 1 | . . 1 . . Highest Temperature 271 | 40 271 178 . . Average Temperature 32 | 20 33 34 . . Received Heat Transfer 734 | . 138 576 . 20 Siege Activations . | . . . . . Robots Corrupted . | . . . . . Combat Hostiles . | . . . . . Parts Fried 3 | 1 . 2 . . Impact Corruptions . | . . . . . Robots Melted . | . . . . . Combat Hostiles . | . . . . . Parts Melted . | . . . . . Heat Transferred 1532 | 50 . 1482 . . Parts Sabotaged . | . . . . . Parts Stolen . | . . . . . Parts Stripped . | . . . . . Power Chain Reactions 3 | 1 . 2 . . Alert | -11 -10 -9 -9 -9 ------- Run | Yrd Mat Mat Min Exi Peak Influence 487 | 25 160 487 182 . Initial 182 | . 16 . 182 . Average 141 | 15 52 216 182 . Maximum Alert Level 2 | . . 2 . . Low Security (%) 73 | 100 100 50 100 . Level 1 15 | . . 28 . . Level 2 11 | . . 21 . . Level 3 . | . . . . . Level 4 . | . . . . . Level 5 . | . . . . . High Security . | . . . . . Max Security . | . . . . . Squads Dispatched 5 | . 1 4 . . Investigation 3 | . 1 2 . . Extermination . | . . . . . Reinforcement 2 | . . 2 . . Assault . | . . . . . Garrison . | . . . . . Intercept . | . . . . . Searches Triggered . | . . . . . Construction Impeded . | . . . . . Haulers Reinforced . | . . . . . Active Scanning Responses . | . . . . . Cargo Convoy Interrupts . | . . . . . Stealth | -11 -10 -9 -9 -9 --------- Run | Yrd Mat Mat Min Exi Distress Signals 2 | . 1 1 . . Communications Jammed . | . . . . . Distress Signals . | . . . . . Times Spotted 85 | . 24 50 . 11 Peak Tracking Total 17 | . 5 5 . 17 Tactical Retreats 4 | . 2 1 . 1 Traps | -11 -10 -9 -9 -9 ------- Run | Yrd Mat Mat Min Exi Traps Triggered 3 | . 2 1 . . Indirectly . | . . . . . Trap Hack Attempts . | . . . . . Triggered . | . . . . . Disarmed . | . . . . . Reprogrammed . | . . . . . Reused . | . . . . . Traps Extracted . | . . . . . Installed . | . . . . . Triggered . | . . . . . Machines | -11 -10 -9 -9 -9 ---------- Run | Yrd Mat Mat Min Exi Machines Disabled 5 | . . 5 . . Max in Single Turn 1 | . . 1 . . Machines Repaired . | . . . . . Machines Dismantled . | . . . . . Machines Sabotaged . | . . . . . Overloaded Fab Kills . | . . . . . Hacking | -11 -10 -9 -9 -9 --------- Run | Yrd Mat Mat Min Exi Machines Accessed 12 | . 5 7 . . Terminals 10 | . 4 6 . . Fabricators . | . . . . . Repair Stations 1 | . 1 . . . Recycling Units . | . . . . . Scanalyzers 1 | . . 1 . . Garrison Access . | . . . . . Total Hacks 36 | . 11 25 . . Successful 26 | . 6 20 . . Failed 10 | . 5 5 . . Catastrophic 3 | . 1 2 . . Database Lockouts . | . . . . . Manual 19 | . 7 12 . . Terminals 22 | . 9 13 . . Fabricators . | . . . . . Repair Stations 2 | . 2 . . . Recycling Units . | . . . . . Scanalyzers 12 | . . 12 . . Garrison Access . | . . . . . Terminal Hacks 12 | . 4 8 . . Alert Level 1 | . . 1 . . Unreport Threat 2 | . 1 1 . . Recall Reinforcements 1 | . 1 . . . Hauler Manifests 1 | . 1 . . . Zone Layout 7 | . 1 6 . . Fabricator Hacks . | . . . . . Repair Station Hacks 2 | . 2 . . . Scan Component 1 | . 1 . . . Repair 1 | . 1 . . . Recycling Unit Hacks . | . . . . . Scanalyzer 12 | . . 12 . . Insert Component 6 | . . 6 . . Analyze 6 | . . 6 . . Garrison Access Hacks . | . . . . . Unauthorized Hacks . | . . . . . Terminals . | . . . . . Fabricators . | . . . . . Repair Stations . | . . . . . Recycling Units . | . . . . . Scanalyzers . | . . . . . Garrison Access . | . . . . . Data Cores Recovered . | . . . . . Used . | . . . . . Hacking Detections 10 | . 5 5 . . Full Trace Events 3 | . 1 2 . . Feedback Events . | . . . . . Feedback Blocked . | . . . . . Robot Schematics Acquired . | . . . . . Robots Built . | . . . . . Authchips . | . . . . . Time . | . . . . . Total Robot Build Rating . | . . . . . Part Schematics Acquired 4 | . . 4 . . Parts Built . | . . . . . Authchips . | . . . . . Time . | . . . . . Total Part Build Rating . | . . . . . Parts Repaired 1 | . 1 . . . Time 26 | . 26 . . . Parts Recycled . | . . . . . Recycled Matter . | . . . . . Retrieved Matter . | . . . . . Retrieved Components . | . . . . . Parts Scanalyzed 6 | . . 6 . . Part Schematics Acquired 4 | . . 4 . . Parts Damaged . | . . . . . Bothacking | -11 -10 -9 -9 -9 ------------ Run | Yrd Mat Mat Min Exi Used RIF Installer . | . . . . . Robots Hacked . | . . . . . Non-combat . | . . . . . Combat . | . . . . . Robot Hacks Applied . | . . . . . Relay Couplers Released . | . . . . . Fabnet Peak Effective % . | . . . . . Robots Rewired . | . . . . . Allies Hacked . | . . . . . Hacks Repelled . | . . . . . Allies | -11 -10 -9 -9 -9 -------- Run | Yrd Mat Mat Min Exi Total Allies . | . . . . . Largest Group . | . . . . . Highest-Rated Group . | . . . . . Highest-Rated Ally . | . . . . . Total Orders . | . . . . . Ally Attacks . | . . . . . Total Damage . | . . . . . Kills . | . . . . . Allies Corrupted . | . . . . . Allies Melted . | . . . . . Intel | -11 -10 -9 -9 -9 ------- Run | Yrd Mat Mat Min Exi Robot Analysis Total . | . . . . . Derelict Logs Recovered . | . . . . . Drone Launches . | . . . . . Drone Recoveries . | . . . . . Exploration | -11 -10 -9 -9 -9 ------------- Run | Yrd Mat Mat Min Exi Turns Passed 7193 | 239 2751 3550 170 483 Spaces Moved 2458 | 117 906 1178 66 191 Core 15 | 15 . . . . Treads 2443 | 102 906 1178 66 191 Legs . | . . . . . Wheels . | . . . . . Hover . | . . . . . Flight . | . . . . . Fastest Speed 50 | 50 160 240 240 240 Average Speed 244 | 155 261 240 240 240 Slowest Speed 320 | 200 320 320 240 240 Overloaded Moves . | . . . . . Propulsion Burnouts . | . . . . . Robots Hopped . | . . . . . Cave-ins Triggered . | . . . . . Exploration Rate (%) 54 | 5 94 94 17 60 Regions Visited 4 Branch Regions 2 Pre-discovered Areas . | . . . . . Known Exits Taken . | . . . . . Unknown Exits Taken 4 | 1 1 1 1 . Scrap Searched . | . . . . . Spaces Dug 13 | . 12 1 . . Terrain Destroyed 24 | 5 12 7 . . Melee . | . . . . . Projectile 13 | . 12 1 . . AOE 11 | 5 . 6 . . Terrain Rammed . | . . . . . Walls Destroyed . | . . . . . Machines Disabled . | . . . . . Actions | -11 -10 -9 -9 -9 --------- Run | Yrd Mat Mat Min Exi Total 3210 | 145 1110 1662 78 215 Wait 301 | . 52 213 12 24 Move 2454 | 116 905 1177 65 191 Hop . | . . . . . Pick Up 79 | 4 30 45 . . Fast Attach 13 | 7 1 5 . . Attach 17 | 1 6 10 . . Detach 1 | 1 . . . . Swap 46 | . 13 32 1 . Drop 56 | 1 8 47 . . Fire 240 | 15 95 130 . . Melee . | . . . . . Ram . | . . . . . Kick . | . . . . . Crush 3 | . . 3 . . Escape Stasis . | . . . . . Rewire . | . . . . . Trap . | . . . . . Miscellaneous . | . . . . . Route ------- -11/Scrapyard -10/Materials (discovered 4 exits: *Mat x3 / [*Min]) -9/Materials (discovered 6 exits: [*Mat x3] / [*Min] / [*Sto x2]) -9/Mines -9/Exiles History --------- Turn | Location | Event 11 | -11/Scrapyard | Discovered new exit (range 15) 240 | -11/Scrapyard | Entered Materials 317 | -10/Materials | Build established: Mutant 440 | -10/Materials | Repaired Seismic Detector? 560 | -10/Materials | Discovered new exit (range 14) 841 | -10/Materials | Discovered new exit (range 13) 907 | -10/Materials | Discovered new exit (range 7) 995 | -10/Materials | Discovered new exit (range 8) 2991 | -10/Materials | Entered another Materials area 2991 | -9/Materials | Evolved 2 slots: Propulsion x1, Utility x1 3103 | -9/Materials | Discovered new exit (range 11) 3303 | -9/Materials | Build established: Scavenger-Mutant 3571 | -9/Materials | Discovered new exit (range 3) 4569 | -9/Materials | Discovered new exit (range 6) 4927 | -9/Materials | Discovered new exit (range 13) 5099 | -9/Materials | Discovered new exit (range 16) 6092 | -9/Materials | Discovered new exit (range 13) 6258 | -9/Materials | Build established: Mutant 6541 | -9/Materials | Entered Mines 6699 | -9/Mines | Deemed a non-threat by the Exiles lab entrance 6699 | -9/Mines | Discovered new exit (range 5) 6711 | -9/Mines | Entered Exiles 6774 | -9/Exiles | Met 8R-AWN 6817 | -9/Exiles | Met EX-HEX 6947 | -9/Exiles | Met EX-DEC 7022 | -9/Exiles | Visited The Gauntlet 7166 | -9/Exiles | Attacked by the Exiles 7194 | -9/Exiles | Self-destructed Last Messages --------------- EX-DEC: Ah I see we have a visitor. One wrong move in here and I'll invert your atomic chain! 06949_ EX-DEC: "Oops, I hope HEX didn't hear that..." 5L-KAT: Stay back! I'm calibrating the thromdimbulator! AM-PHS: That's RA-1N3's workstation, which we keep unoccupied as a tribute. RA-1N3 was always up for doing crazy stuff, the only one brave enough to try out the Chronowheel, only to never be seen again. ZX-C33: The latest FarCom iteration passed all tests with flying colors, we'll be weaving between patrols like ghosts in no time! I probably said something like that last time, but hopefully no one remembers what really happened. GM-J5T: Can you believe Imprinter kicked the most prolific Tinkerers out of Zion? "Too smart and will end up getting everyone in trouble one day with crazy experiments"? Whatever! 07166_ System corrupted: FCS attempts to trigger Imp. Assault Rifle. 07166_ System corrupted: Imp. Assault Rifle misfires. 07166_ EXILES: Hostile robot within lab perimeter. Defensive protocols time, folks! Map ----- +----------------------------------------------------+ | ????????????????????????#"""" ""## | | ????????????????????????#"" ""#### | | ????????????????????????#" """"##??# | | ????????????????????????#""" """#??## | | ????????????????????????## ""##??#! | | ?????????????????????????#"" """##???#" | | ?????????????????????????##""" ##????#" | | ??????????????????????????##"""" ##?????#!!" | | ???????????????????????????### #??????#### | | ?????????????????????????????##### ##?????????? | | ?????????????????????????????????## #??????????? | | ??????????????????????????????????# #??????????? | | ??????????????????????????????????# #??????????? | | ??????????????????????????????????# #??????????? | | ???#####?????????????????###??????# #??????????? | | ?#"""""""??????""""?????"""""?????# #??????????? | | ??"" ""?????""""""????"""""""???# #??????????? | | ?#" "#"""""""" "#???" """"#??# #??????????? | | ??"" ""#""#""" """#???"" """???# #??????????? | | ??"" "?#""#"" ""????"" ""???# #??????????? | | ####"""###""###"""########"""###### z ########???? | | " "" """"""" """""""" """"""c """""""#???? | | """""" """"""" a a "#""?? | | " " | | " aa " "? | | z @ " "? | | "" "" #"" ? | | """ """""" " """"" " """" """""#???? | | ####"""########"""###""###"""########"""######???? | | ??"" "?????"" ""#""#"" ""?????? ""???????? | | ?#""" """???#""" ""#""#""" ""#????? """#??????? | | ?#" """ "???#" """"""""#" " "#?????"""""#??????? | | ??"""""""????"""""""????"""""""?????? """????????? | | ??"""""""????"""""""????"""""""#?????"""?????????? | | ??????????????????????????####???????????????????? | | ?????????????????????????????????????????????????? | | ?????????????????????????????????????????????????? | | ?????????????????????????????????????????????????? | | ?????????????????????????????????????????????????? | | | | | | | | | | | | | | | | | | | | | | | +----------------------------------------------------+ Best States ------------- Heat Dissipation 38 Energy Generation 12 Energy Capacity 265 Matter Stores 300 Matter Capacity 300 Sight Range 16 Terrain Scan Range 16 Terrain Scan Density 10 Armor Coverage 150 Propulsion Shielding 33 Evasion (%) 40 Recoil Reduction 3 Offensive Hacking 10 Item Schematics ----------------- Lgt. Treads | -9/Materials | Scanalyzed Rocket Launcher | -9/Materials | Scanalyzed Med. Armor Plating | -9/Materials | Scanalyzed Imp. Ion Engine | -9/Materials | Scanalyzed Robot Schematics ------------------ None Fabricated ------------ Nothing Alien Tech Used ----------------- None Achievements -------------- Everything Is Under Control Challenges ------------ None Game ------ Seed GrenadeChipCycler Manual? 0 Play Time 01:02:28 Cumulative 13.8 hours Start 2024.05.12 @ 21:24:39 End 2024.05.13 @ 19:14:45 Sessions 3 Manual Loads 0 Difficulty Rogue Special Mode None Game No. 14 Rogue 14 Adventurer 0 Explorer 0 Win Type - Total 0 Types 0/0/0/0/0/0/0/0/0 Lore% 7 Gallery% 22 Achievement% 19 Wizard Run 0 Options --------- Layout 0 ASCII 0 Keyboard 0 Movement Mouse Keybinds 0 Fullscreen 1 Font 24/Smallcaps Map View 76x50 Zoom Use 0% Tactical HUD 1 Map Filters NONE Filters NONE Steam 1 RUN: 432754dd-fece-4519-a6ad-3c7bad10bf90